[Event "Titled Tuesday Blitz May 9 Early 2023"]
[White "Sjugirov, Sanan"]
[Black "Parkhov, Yair"]
[WhiteFideId "4189302"]
[BlackFideId "2813408"]
[WhiteElo "2569"]
[BlackElo "2421"]
[Result "1-0"]
[Round "03"]
[TimeControl "180+2"]
[Date "2023.05.09"]
[WhiteClock "0:00:08"]
[BlackClock "0:00:27"]

1. e4 {[%clk 0:03:00]}  d6 {[%clk 0:02:51]} 2. d4 {[%clk 0:03:00]}  Nf6 {[%clk 0:02:51]} 3. Bd3 {[%clk 0:03:00]}  Nc6 {[%clk 0:02:46]} 4. c3 {[%clk 0:02:59]}  e5 {[%clk 0:02:46]} 5. Nf3 {[%clk 0:02:59]}  Bg4 {[%clk 0:02:38]} 6. d5 {[%clk 0:02:48]}  Ne7 {[%clk 0:02:35]} 7. h3 {[%clk 0:02:46]}  Bd7 {[%clk 0:02:33]} 8. c4 {[%clk 0:02:46]}  Ng6 {[%clk 0:02:32]} 9. Nc3 {[%clk 0:02:46]}  Be7 {[%clk 0:02:29]} 10. Be3 {[%clk 0:02:33]}  O-O {[%clk 0:02:29]} 11. g3 {[%clk 0:02:23]}  h6 {[%clk 0:02:28]} 12. Nd2 {[%clk 0:02:06]}  a5 {[%clk 0:02:13]} 13. Qe2 {[%clk 0:02:04]}  b6 {[%clk 0:02:10]} 14. O-O-O {[%clk 0:02:03]}  Qc8 {[%clk 0:02:03]} 15. Qf1 {[%clk 0:02:01]}  a4 {[%clk 0:01:50]} 16. a3 {[%clk 0:02:00]}  c6 {[%clk 0:01:47]} 17. dxc6 {[%clk 0:01:58]}  Bxc6 {[%clk 0:01:47]} 18. Kb1 {[%clk 0:01:55]}  Qb7 {[%clk 0:01:35]} 19. f4 {[%clk 0:01:52]}  Rfc8 {[%clk 0:01:29]} 20. f5 {[%clk 0:01:51]}  Nf8 {[%clk 0:01:29]} 21. g4 {[%clk 0:01:51]}  N8d7 {[%clk 0:01:25]} 22. Rc1 {[%clk 0:00:57]}  Nc5 {[%clk 0:01:23]} 23. Bxc5 {[%clk 0:00:57]}  bxc5 {[%clk 0:01:15]} 24. Rg1 {[%clk 0:00:57]}  Rcb8 {[%clk 0:01:13]} 25. Rc2 {[%clk 0:00:57]}  Nh7 {[%clk 0:01:06]} 26. Qf2 {[%clk 0:00:50]}  Bg5 {[%clk 0:00:48]} 27. h4 {[%clk 0:00:48]}  Bf4 {[%clk 0:00:42]} 28. Nf3 {[%clk 0:00:35]}  f6 {[%clk 0:00:40]} 29. Ne1 {[%clk 0:00:23]}  Ra6 {[%clk 0:00:38]} 30. Ng2 {[%clk 0:00:21]}  Rb6 {[%clk 0:00:38]} 31. Nxf4 {[%clk 0:00:20]}  exf4 {[%clk 0:00:37]} 32. Nb5 {[%clk 0:00:16]}  Bxe4 {[%clk 0:00:33]} 33. Bxe4 {[%clk 0:00:16]}  Qxe4 {[%clk 0:00:34]} 34. Re1 {[%clk 0:00:16]}  Qd3 {[%clk 0:00:30]} 35. Qxf4 {[%clk 0:00:13]}  Nf8 {[%clk 0:00:29]} 36. Re3 {[%clk 0:00:08]}  Qf1+ {[%clk 0:00:27]} 37. Qxf1 {[%clk 0:00:08]} 1-0


[Site "https://www.chess.com"]

[Event "Titled Tuesday Blitz May 9 Early 2023"]
[White "Simonian, Hrair"]
[Black "Kamsky, Gata"]
[WhiteFideId "13302337"]
[BlackFideId "2000024"]
[WhiteElo "2447"]
[BlackElo "2660"]
[Result "1/2-1/2"]
[Round "03"]
[TimeControl "180+2"]
[Date "2023.05.09"]
[WhiteClock "0:01:08"]
[BlackClock "0:01:23"]

1. e4 {[%clk 0:03:00]}  e5 {[%clk 0:02:41]} 2. Nf3 {[%clk 0:03:00]}  Nc6 {[%clk 0:02:41]} 3. Bb5 {[%clk 0:03:00]}  a6 {[%clk 0:02:40]} 4. Ba4 {[%clk 0:02:59]}  Nf6 {[%clk 0:02:39]} 5. O-O {[%clk 0:02:59]}  Be7 {[%clk 0:02:38]} 6. Bxc6 {[%clk 0:02:58]}  dxc6 {[%clk 0:02:37]} 7. d3 {[%clk 0:02:59]}  Nd7 {[%clk 0:02:35]} 8. Nbd2 {[%clk 0:02:59]}  O-O {[%clk 0:02:34]} 9. Nc4 {[%clk 0:02:59]}  Bd6 {[%clk 0:02:27]} 10. d4 {[%clk 0:02:31]}  exd4 {[%clk 0:02:26]} 11. Nxd6 {[%clk 0:02:31]}  cxd6 {[%clk 0:02:26]} 12. Qxd4 {[%clk 0:02:31]}  Qf6 {[%clk 0:02:21]} 13. Rd1 {[%clk 0:02:30]}  Ne5 {[%clk 0:02:18]} 14. Nxe5 {[%clk 0:02:18]}  dxe5 {[%clk 0:02:16]} 15. Qe3 {[%clk 0:01:57]}  Qg6 {[%clk 0:02:12]} 16. b3 {[%clk 0:01:51]}  Be6 {[%clk 0:02:01]} 17. Ba3 {[%clk 0:01:47]}  Rfe8 {[%clk 0:01:43]} 18. Rd6 {[%clk 0:01:42]}  f6 {[%clk 0:01:41]} 19. Rad1 {[%clk 0:01:40]}  h5 {[%clk 0:01:39]} 20. h3 {[%clk 0:01:27]}  a5 {[%clk 0:01:39]} 21. Bc5 {[%clk 0:01:25]}  a4 {[%clk 0:01:38]} 22. Bb6 {[%clk 0:01:09]}  axb3 {[%clk 0:01:37]} 23. axb3 {[%clk 0:01:10]}  Kh7 {[%clk 0:01:34]} 24. Rd8 {[%clk 0:01:06]}  Rexd8 {[%clk 0:01:33]} 25. Rxd8 {[%clk 0:01:07]}  Rxd8 {[%clk 0:01:23]} 26. Bxd8 {[%clk 0:01:08]} 1/2-1/2


[Site "https://www.chess.com"]

[Event "Titled Tuesday Blitz May 9 Early 2023"]
[White "Quesada Perez, Yuniesky"]
[Black "Manukyan, Sargis A."]
[WhiteFideId "3504409"]
[BlackFideId "13303970"]
[WhiteElo "2585"]
[BlackElo "2187"]
[Result "1-0"]
[Round "03"]
[TimeControl "180+2"]
[Date "2023.05.09"]
[WhiteClock "0:00:10"]
[BlackClock "0:00:17"]

1. e4 {[%clk 0:03:00]}  c5 {[%clk 0:03:00]} 2. Nf3 {[%clk 0:03:00]}  d6 {[%clk 0:03:00]} 3. d4 {[%clk 0:03:00]}  cxd4 {[%clk 0:03:00]} 4. Nxd4 {[%clk 0:03:01]}  Nf6 {[%clk 0:03:01]} 5. Nc3 {[%clk 0:03:01]}  g6 {[%clk 0:03:01]} 6. Be3 {[%clk 0:03:00]}  Bg7 {[%clk 0:03:01]} 7. f3 {[%clk 0:03:00]}  O-O {[%clk 0:03:02]} 8. Qd2 {[%clk 0:03:00]}  Nc6 {[%clk 0:03:02]} 9. O-O-O {[%clk 0:03:00]}  d5 {[%clk 0:03:02]} 10. Nxc6 {[%clk 0:03:01]}  bxc6 {[%clk 0:03:03]} 11. Bc4 {[%clk 0:03:01]}  e6 {[%clk 0:02:50]} 12. Bb3 {[%clk 0:03:00]}  a5 {[%clk 0:02:50]} 13. h4 {[%clk 0:02:54]}  Nd7 {[%clk 0:02:37]} 14. Bh6 {[%clk 0:02:42]}  Qf6 {[%clk 0:02:23]} 15. h5 {[%clk 0:02:18]}  Nc5 {[%clk 0:02:14]} 16. Bxg7 {[%clk 0:02:03]}  Qxg7 {[%clk 0:02:13]} 17. hxg6 {[%clk 0:02:02]}  hxg6 {[%clk 0:02:10]} 18. Na4 {[%clk 0:01:55]}  Nxa4 {[%clk 0:01:55]} 19. Bxa4 {[%clk 0:01:56]}  Rb8 {[%clk 0:01:55]} 20. c3 {[%clk 0:01:51]}  c5 {[%clk 0:01:42]} 21. Rh4 {[%clk 0:01:31]}  dxe4 {[%clk 0:00:58]} 22. fxe4 {[%clk 0:01:30]}  Bb7 {[%clk 0:00:57]} 23. Rdh1 {[%clk 0:01:25]}  Rfd8 {[%clk 0:00:56]} 24. Qg5 {[%clk 0:01:10]}  Rbc8 {[%clk 0:00:36]} 25. e5 {[%clk 0:00:37]}  Rd5 {[%clk 0:00:25]} 26. Qf6 {[%clk 0:00:37]}  Qxf6 {[%clk 0:00:21]} 27. exf6 {[%clk 0:00:38]}  Rh5 {[%clk 0:00:21]} 28. Rxh5 {[%clk 0:00:38]}  gxh5 {[%clk 0:00:22]} 29. Rxh5 {[%clk 0:00:38]}  Be4 {[%clk 0:00:19]} 30. Bc2 {[%clk 0:00:32]}  Bd5 {[%clk 0:00:16]} 31. Rg5+ {[%clk 0:00:26]}  Kf8 {[%clk 0:00:15]} 32. Bh7 {[%clk 0:00:25]}  Ke8 {[%clk 0:00:15]} 33. Rg8+ {[%clk 0:00:25]}  Kd7 {[%clk 0:00:16]} 34. Rg7 {[%clk 0:00:24]}  e5 {[%clk 0:00:15]} 35. Bf5+ {[%clk 0:00:23]}  Be6 {[%clk 0:00:15]} 36. Rxf7+ {[%clk 0:00:23]}  Kd6 {[%clk 0:00:15]} 37. Bxe6 {[%clk 0:00:19]}  Kxe6 {[%clk 0:00:16]} 38. Ra7 {[%clk 0:00:17]}  Kxf6 {[%clk 0:00:17]} 39. Rxa5 {[%clk 0:00:18]}  Kf5 {[%clk 0:00:17]} 40. Kd2 {[%clk 0:00:18]}  Ke4 {[%clk 0:00:17]} 41. Ra4+ {[%clk 0:00:16]}  Kf5 {[%clk 0:00:18]} 42. g4+ {[%clk 0:00:15]}  Ke6 {[%clk 0:00:17]} 43. Ke3 {[%clk 0:00:15]}  Rh8 {[%clk 0:00:18]} 44. Ke4 {[%clk 0:00:14]}  Rg8 {[%clk 0:00:13]} 45. Ra6+ {[%clk 0:00:15]}  Kd7 {[%clk 0:00:13]} 46. Kxe5 {[%clk 0:00:14]}  Rxg4 {[%clk 0:00:14]} 47. Kd5 {[%clk 0:00:14]}  Rg5+ {[%clk 0:00:14]} 48. Kc4 {[%clk 0:00:14]}  Kc7 {[%clk 0:00:14]} 49. Kb5 {[%clk 0:00:10]}  Rg2 {[%clk 0:00:13]} 50. b3 {[%clk 0:00:10]}  Rg5 {[%clk 0:00:13]} 51. c4 {[%clk 0:00:10]}  Kb7 {[%clk 0:00:13]} 52. Rc6 {[%clk 0:00:10]}  Rg2 {[%clk 0:00:13]} 53. Rxc5 {[%clk 0:00:09]}  Rxa2 {[%clk 0:00:13]} 54. Rh5 {[%clk 0:00:09]}  Rg2 {[%clk 0:00:13]} 55. Rh7+ {[%clk 0:00:09]}  Kc8 {[%clk 0:00:13]} 56. b4 {[%clk 0:00:10]}  Rg6 {[%clk 0:00:14]} 57. c5 {[%clk 0:00:10]}  Rf6 {[%clk 0:00:14]} 58. c6 {[%clk 0:00:10]}  Rg6 {[%clk 0:00:13]} 59. Kb6 {[%clk 0:00:10]}  Rg8 {[%clk 0:00:13]} 60. Ra7 {[%clk 0:00:09]}  Kb8 {[%clk 0:00:13]} 61. c7+ {[%clk 0:00:09]}  Kc8 {[%clk 0:00:13]} 62. Ra8+ {[%clk 0:00:09]}  Kd7 {[%clk 0:00:14]} 63. Rxg8 {[%clk 0:00:10]}  Ke7 {[%clk 0:00:15]} 64. c8=Q {[%clk 0:00:10]}  Kd6 {[%clk 0:00:16]} 65. Rg6+ {[%clk 0:00:09]}  Ke7 {[%clk 0:00:16]} 66. Re6+ {[%clk 0:00:09]}  Kf7 {[%clk 0:00:17]} 67. Qd7+ {[%clk 0:00:09]}  Kg8 {[%clk 0:00:17]} 68. Re8# {[%clk 0:00:10]} 1-0


[Site "https://www.chess.com"]

[Event "Titled Tuesday Blitz May 9 Early 2023"]
[White "Livaic, Leon"]
[Black "Sahib Singh"]
[WhiteFideId "14531534"]
[BlackFideId "25618342"]
[WhiteElo "2522"]
[BlackElo "1934"]
[Result "0-1"]
[Round "03"]
[TimeControl "180+2"]
[Date "2023.05.09"]
[WhiteClock "0:00:03"]
[BlackClock "0:00:05"]

1. d4 {[%clk 0:03:00]}  d5 {[%clk 0:02:58]} 2. c4 {[%clk 0:03:01]}  e6 {[%clk 0:02:56]} 3. Nc3 {[%clk 0:03:01]}  c6 {[%clk 0:02:55]} 4. Nf3 {[%clk 0:03:01]}  dxc4 {[%clk 0:02:52]} 5. e3 {[%clk 0:03:01]}  b5 {[%clk 0:02:52]} 6. a4 {[%clk 0:03:01]}  Bb4 {[%clk 0:02:51]} 7. Bd2 {[%clk 0:03:02]}  a5 {[%clk 0:02:50]} 8. axb5 {[%clk 0:03:02]}  Bxc3 {[%clk 0:02:50]} 9. Bxc3 {[%clk 0:03:02]}  cxb5 {[%clk 0:02:51]} 10. b3 {[%clk 0:03:03]}  Bb7 {[%clk 0:02:52]} 11. bxc4 {[%clk 0:03:03]}  b4 {[%clk 0:02:52]} 12. Bb2 {[%clk 0:03:04]}  Nf6 {[%clk 0:02:52]} 13. Bd3 {[%clk 0:03:04]}  O-O {[%clk 0:02:52]} 14. O-O {[%clk 0:03:04]}  Nbd7 {[%clk 0:02:53]} 15. Re1 {[%clk 0:03:05]}  Qc7 {[%clk 0:02:48]} 16. e4 {[%clk 0:03:05]}  e5 {[%clk 0:02:48]} 17. c5 {[%clk 0:03:05]}  Rfe8 {[%clk 0:02:31]} 18. Rc1 {[%clk 0:03:03]}  exd4 {[%clk 0:02:26]} 19. c6 {[%clk 0:02:54]}  Bxc6 {[%clk 0:02:26]} 20. Bb5 {[%clk 0:02:25]}  Re6 {[%clk 0:01:21]} 21. Nxd4 {[%clk 0:02:25]}  Nb8 {[%clk 0:01:09]} 22. Nxe6 {[%clk 0:02:18]}  fxe6 {[%clk 0:01:10]} 23. Bxf6 {[%clk 0:01:56]}  gxf6 {[%clk 0:01:09]} 24. Qc2 {[%clk 0:01:54]}  a4 {[%clk 0:00:57]} 25. Bxc6 {[%clk 0:01:52]}  b3 {[%clk 0:00:51]} 26. Qb2 {[%clk 0:01:40]}  Nxc6 {[%clk 0:00:48]} 27. Qxf6 {[%clk 0:01:40]}  Qe5 {[%clk 0:00:44]} 28. Qf3 {[%clk 0:01:34]}  Nd4 {[%clk 0:00:42]} 29. Qg4+ {[%clk 0:01:28]}  Qg7 {[%clk 0:00:39]} 30. Qf4 {[%clk 0:01:14]}  b2 {[%clk 0:00:39]} 31. Rc7 {[%clk 0:01:14]}  Ne2+ {[%clk 0:00:28]} 32. Rxe2 {[%clk 0:00:32]}  b1=Q+ {[%clk 0:00:28]} 33. Rc1 {[%clk 0:00:33]}  Qb5 {[%clk 0:00:21]} 34. Rec2 {[%clk 0:00:32]}  Qbg5 {[%clk 0:00:19]} 35. Rc8+ {[%clk 0:00:31]}  Qd8 {[%clk 0:00:19]} 36. Rxd8+ {[%clk 0:00:30]}  Rxd8 {[%clk 0:00:20]} 37. e5 {[%clk 0:00:26]}  a3 {[%clk 0:00:18]} 38. Qa4 {[%clk 0:00:23]}  Qd7 {[%clk 0:00:12]} 39. Qb3 {[%clk 0:00:16]}  Qd5 {[%clk 0:00:10]} 40. Qg3+ {[%clk 0:00:11]}  Kh8 {[%clk 0:00:10]} 41. h3 {[%clk 0:00:11]}  a2 {[%clk 0:00:10]} 42. Qc3 {[%clk 0:00:09]}  Qd1+ {[%clk 0:00:09]} 43. Kh2 {[%clk 0:00:09]}  Qd5 {[%clk 0:00:08]} 44. Ra1 {[%clk 0:00:07]}  Ra8 {[%clk 0:00:09]} 45. Qg3 {[%clk 0:00:07]}  Qe4 {[%clk 0:00:06]} 46. Qg5 {[%clk 0:00:06]}  Qd5 {[%clk 0:00:05]} 47. Qf6+ {[%clk 0:00:05]}  Kg8 {[%clk 0:00:05]} 48. Qg5+ {[%clk 0:00:06]}  Kh8 {[%clk 0:00:06]} 49. Qf6+ {[%clk 0:00:04]}  Kg8 {[%clk 0:00:07]} 50. Qf4 {[%clk 0:00:03]}  Ra5 {[%clk 0:00:05]} 51. Qg5+ {[%clk 0:00:02]}  Kh8 {[%clk 0:00:05]} 52. Qf6+ {[%clk 0:00:03]}  Kg8 {[%clk 0:00:05]} 53. Qg5+ {[%clk 0:00:03]}  Kf7 {[%clk 0:00:06]} 54. Qf6+ {[%clk 0:00:02]}  Kg8 {[%clk 0:00:06]} 55. f4 {[%clk 0:00:03]}  Ra7 {[%clk 0:00:05]} 56. Qg5+ {[%clk 0:00:03]}  Rg7 {[%clk 0:00:06]} 57. Qh4 {[%clk 0:00:03]}  Qxg2# {[%clk 0:00:05]} 0-1


[Site "https://www.chess.com"]

[Event "Titled Tuesday Blitz May 9 Early 2023"]
[White "Salinas Herrera, Pablo"]
[Black "Agibileg, Uurtsaikh"]
[WhiteFideId "3407128"]
[BlackFideId "4901606"]
[WhiteElo "2546"]
[BlackElo "2353"]
[Result "1-0"]
[Round "03"]
[TimeControl "180+2"]
[Date "2023.05.09"]
[WhiteClock "0:00:10"]
[BlackClock "0:00:18"]

1. e4 {[%clk 0:03:00]}  c5 {[%clk 0:03:00]} 2. Nf3 {[%clk 0:03:00]}  e6 {[%clk 0:03:00]} 3. g3 {[%clk 0:03:00]}  Nc6 {[%clk 0:03:00]} 4. Bg2 {[%clk 0:03:00]}  Nf6 {[%clk 0:02:59]} 5. Qe2 {[%clk 0:02:55]}  e5 {[%clk 0:02:59]} 6. O-O {[%clk 0:02:55]}  Be7 {[%clk 0:02:59]} 7. b3 {[%clk 0:02:53]}  O-O {[%clk 0:02:59]} 8. Bb2 {[%clk 0:02:54]}  d6 {[%clk 0:02:59]} 9. d3 {[%clk 0:02:53]}  h6 {[%clk 0:02:58]} 10. Nh4 {[%clk 0:02:53]}  Re8 {[%clk 0:02:57]} 11. Nd2 {[%clk 0:02:52]}  Be6 {[%clk 0:02:56]} 12. f4 {[%clk 0:02:52]}  exf4 {[%clk 0:02:49]} 13. gxf4 {[%clk 0:02:50]}  Nxe4 {[%clk 0:02:45]} 14. Nxe4 {[%clk 0:02:51]}  Bxh4 {[%clk 0:02:43]} 15. f5 {[%clk 0:02:52]}  Bd7 {[%clk 0:02:36]} 16. Qg4 {[%clk 0:02:49]}  Ne5 {[%clk 0:02:32]} 17. Qh5 {[%clk 0:02:23]}  Bf6 {[%clk 0:01:49]} 18. Nxd6 {[%clk 0:02:19]}  Nf3+ {[%clk 0:01:49]} 19. Bxf3 {[%clk 0:01:32]}  Bxb2 {[%clk 0:01:50]} 20. Qxf7+ {[%clk 0:01:32]}  Kh8 {[%clk 0:01:44]} 21. f6 {[%clk 0:01:14]}  Qxf6 {[%clk 0:01:01]} 22. Qxd7 {[%clk 0:01:13]}  Qd4+ {[%clk 0:00:53]} 23. Kh1 {[%clk 0:01:09]}  Bxa1 {[%clk 0:00:52]} 24. Nf7+ {[%clk 0:00:28]}  Kh7 {[%clk 0:00:51]} 25. Qxb7 {[%clk 0:00:20]}  Rab8 {[%clk 0:00:17]} 26. Be4+ {[%clk 0:00:13]}  Kg8 {[%clk 0:00:17]} 27. Nxh6+ {[%clk 0:00:10]}  gxh6 {[%clk 0:00:18]} 28. Qh7# {[%clk 0:00:10]} 1-0


[Site "https://www.chess.com"]

[Event "Titled Tuesday Blitz May 9 Early 2023"]
[White "Sharapov, Evgeny"]
[Black "Ohanyan, Emin"]
[WhiteFideId "14103133"]
[BlackFideId "13312022"]
[WhiteElo "2367"]
[BlackElo "2411"]
[Result "1-0"]
[Round "03"]
[TimeControl "180+2"]
[Date "2023.05.09"]
[WhiteClock "0:00:43"]
[BlackClock "0:00:03"]

1. e4 {[%clk 0:02:59]}  e5 {[%clk 0:03:00]} 2. Nf3 {[%clk 0:02:59]}  Nc6 {[%clk 0:03:00]} 3. Bb5 {[%clk 0:02:59]}  f5 {[%clk 0:03:01]} 4. Bxc6 {[%clk 0:02:57]}  bxc6 {[%clk 0:02:39]} 5. Nxe5 {[%clk 0:02:57]}  Qf6 {[%clk 0:01:57]} 6. d4 {[%clk 0:02:51]}  fxe4 {[%clk 0:01:55]} 7. O-O {[%clk 0:02:48]}  Bd6 {[%clk 0:01:05]} 8. Nc3 {[%clk 0:02:43]}  Bxe5 {[%clk 0:01:03]} 9. Qh5+ {[%clk 0:02:28]}  Qg6 {[%clk 0:00:43]} 10. Qxg6+ {[%clk 0:02:15]}  hxg6 {[%clk 0:00:44]} 11. dxe5 {[%clk 0:02:15]}  Rh5 {[%clk 0:00:33]} 12. Bf4 {[%clk 0:02:07]}  Rb8 {[%clk 0:00:27]} 13. b3 {[%clk 0:02:04]}  Rf5 {[%clk 0:00:12]} 14. Bg3 {[%clk 0:02:01]}  e3 {[%clk 0:00:13]} 15. fxe3 {[%clk 0:01:58]}  Ba6 {[%clk 0:00:13]} 16. Rxf5 {[%clk 0:01:55]}  gxf5 {[%clk 0:00:14]} 17. e6 {[%clk 0:01:45]}  d6 {[%clk 0:00:14]} 18. e4 {[%clk 0:01:42]}  fxe4 {[%clk 0:00:05]} 19. Nxe4 {[%clk 0:01:41]}  Ke7 {[%clk 0:00:06]} 20. Re1 {[%clk 0:01:37]}  Nf6 {[%clk 0:00:06]} 21. Bh4 {[%clk 0:01:27]}  Rh8 {[%clk 0:00:06]} 22. Bxf6+ {[%clk 0:01:25]}  gxf6 {[%clk 0:00:07]} 23. Ng3 {[%clk 0:01:26]}  Rg8 {[%clk 0:00:02]} 24. Nf5+ {[%clk 0:01:25]}  Ke8 {[%clk 0:00:03]} 25. h3 {[%clk 0:01:14]}  Bc8 {[%clk 0:00:01]} 26. g4 {[%clk 0:01:09]}  c5 {[%clk 0:00:02]} 27. Kf2 {[%clk 0:01:07]}  Kd8 {[%clk 0:00:02]} 28. Kg3 {[%clk 0:01:00]}  Re8 {[%clk 0:00:02]} 29. e7+ {[%clk 0:01:00]}  Kd7 {[%clk 0:00:03]} 30. h4 {[%clk 0:00:55]}  Bb7 {[%clk 0:00:03]} 31. h5 {[%clk 0:00:54]}  Bd5 {[%clk 0:00:04]} 32. h6 {[%clk 0:00:53]}  Bg8 {[%clk 0:00:04]} 33. Kf4 {[%clk 0:00:49]}  Bh7 {[%clk 0:00:05]} 34. g5 {[%clk 0:00:43]}  fxg5+ {[%clk 0:00:06]} 35. Kxg5 {[%clk 0:00:43]}  Rg8+ {[%clk 0:00:03]} 36. Ng7 {[%clk 0:00:43]} 1-0


[Site "https://www.chess.com"]

[Event "Titled Tuesday Blitz May 9 Early 2023"]
[White "Rodchenkov, Sergey D."]
[Black "Kravtsiv, Martyn"]
[WhiteFideId "4168712"]
[BlackFideId "14113147"]
[WhiteElo "2277"]
[BlackElo "2695"]
[Result "0-1"]
[Round "03"]
[TimeControl "180+2"]
[Date "2023.05.09"]
[WhiteClock "0:00:00"]
[BlackClock "0:00:49"]

1. e4 {[%clk 0:03:00]}  e5 {[%clk 0:02:59]} 2. Nf3 {[%clk 0:03:01]}  Nc6 {[%clk 0:02:59]} 3. Bc4 {[%clk 0:03:01]}  Nf6 {[%clk 0:02:58]} 4. d3 {[%clk 0:03:01]}  Bc5 {[%clk 0:02:58]} 5. O-O {[%clk 0:03:02]}  O-O {[%clk 0:02:57]} 6. c3 {[%clk 0:03:01]}  d5 {[%clk 0:02:57]} 7. exd5 {[%clk 0:02:59]}  Nxd5 {[%clk 0:02:58]} 8. Nbd2 {[%clk 0:02:55]}  Bg4 {[%clk 0:02:46]} 9. a4 {[%clk 0:02:34]}  Nb6 {[%clk 0:02:32]} 10. Bb5 {[%clk 0:02:25]}  a6 {[%clk 0:02:30]} 11. Bxc6 {[%clk 0:02:23]}  bxc6 {[%clk 0:02:30]} 12. Ne4 {[%clk 0:02:17]}  Bd6 {[%clk 0:02:30]} 13. h3 {[%clk 0:02:13]}  Bh5 {[%clk 0:02:29]} 14. Ng3 {[%clk 0:02:09]}  Bg6 {[%clk 0:02:29]} 15. Re1 {[%clk 0:02:09]}  Re8 {[%clk 0:02:27]} 16. Bg5 {[%clk 0:01:56]}  f6 {[%clk 0:02:24]} 17. Be3 {[%clk 0:01:55]}  a5 {[%clk 0:02:22]} 18. Bxb6 {[%clk 0:01:51]}  cxb6 {[%clk 0:02:21]} 19. Nh4 {[%clk 0:01:52]}  Bf7 {[%clk 0:02:21]} 20. Qf3 {[%clk 0:01:48]}  Bf8 {[%clk 0:02:11]} 21. c4 {[%clk 0:01:39]}  Qd7 {[%clk 0:02:06]} 22. Rad1 {[%clk 0:01:34]}  Rad8 {[%clk 0:02:04]} 23. Ne4 {[%clk 0:01:26]}  Be6 {[%clk 0:01:58]} 24. Qg3 {[%clk 0:01:24]}  Kh8 {[%clk 0:01:57]} 25. Kh1 {[%clk 0:01:15]}  Qf7 {[%clk 0:01:55]} 26. Qf3 {[%clk 0:01:13]}  Rd7 {[%clk 0:01:43]} 27. g4 {[%clk 0:01:08]}  Red8 {[%clk 0:01:42]} 28. Re3 {[%clk 0:01:07]}  Bxc4 {[%clk 0:01:40]} 29. dxc4 {[%clk 0:00:56]}  Rxd1+ {[%clk 0:01:38]} 30. Kg2 {[%clk 0:00:56]}  Qxc4 {[%clk 0:01:25]} 31. g5 {[%clk 0:00:42]}  Qf1+ {[%clk 0:01:17]} 32. Kg3 {[%clk 0:00:43]}  R1d3 {[%clk 0:01:16]} 33. Ng2 {[%clk 0:00:31]}  Rxe3 {[%clk 0:01:11]} 34. Nxe3 {[%clk 0:00:31]}  Qg1+ {[%clk 0:01:12]} 35. Kh4 {[%clk 0:00:20]}  fxg5+ {[%clk 0:01:00]} 36. Nxg5 {[%clk 0:00:20]}  Rd4+ {[%clk 0:01:00]} 37. Ng4 {[%clk 0:00:12]}  Be7 {[%clk 0:00:53]} 38. Qf5 {[%clk 0:00:06]}  Rxg4+ {[%clk 0:00:51]} 39. Qxg4 {[%clk 0:00:02]}  Qxf2+ {[%clk 0:00:50]} 40. Kh5 {[%clk 0:00:00]}  g6+ {[%clk 0:00:49]} 0-1


[Site "https://www.chess.com"]

[Event "Titled Tuesday Blitz May 9 Early 2023"]
[White "Gatterer, Florian"]
[Black "Beerdsen, Thomas"]
[WhiteFideId "811688"]
[BlackFideId "1030108"]
[WhiteElo "2221"]
[BlackElo "2549"]
[Result "0-1"]
[Round "03"]
[TimeControl "180+2"]
[Date "2023.05.09"]
[WhiteClock "0:00:00"]
[BlackClock "0:01:20"]

1. c4 {[%clk 0:03:00]}  Nf6 {[%clk 0:02:59]} 2. g3 {[%clk 0:02:59]}  h5 {[%clk 0:02:57]} 3. Nf3 {[%clk 0:02:55]}  c6 {[%clk 0:02:57]} 4. d4 {[%clk 0:02:52]}  d6 {[%clk 0:02:56]} 5. Nc3 {[%clk 0:02:50]}  Bf5 {[%clk 0:02:57]} 6. Bg2 {[%clk 0:02:46]}  Nbd7 {[%clk 0:02:57]} 7. Bf4 {[%clk 0:02:44]}  Qb6 {[%clk 0:02:54]} 8. Qb3 {[%clk 0:02:42]}  Qa6 {[%clk 0:02:54]} 9. O-O {[%clk 0:02:34]}  Ne4 {[%clk 0:02:49]} 10. Nxe4 {[%clk 0:02:27]}  Bxe4 {[%clk 0:02:50]} 11. Nd2 {[%clk 0:02:24]}  Bxg2 {[%clk 0:02:50]} 12. Kxg2 {[%clk 0:02:25]}  h4 {[%clk 0:02:50]} 13. e4 {[%clk 0:02:15]}  e6 {[%clk 0:02:49]} 14. Qc3 {[%clk 0:02:04]}  Be7 {[%clk 0:02:45]} 15. a4 {[%clk 0:02:00]}  d5 {[%clk 0:02:43]} 16. b4 {[%clk 0:01:48]}  Qb6 {[%clk 0:02:37]} 17. a5 {[%clk 0:01:33]}  Qd8 {[%clk 0:02:36]} 18. a6 {[%clk 0:01:29]}  b5 {[%clk 0:02:26]} 19. cxb5 {[%clk 0:01:17]}  cxb5 {[%clk 0:02:25]} 20. exd5 {[%clk 0:01:17]}  exd5 {[%clk 0:02:22]} 21. Qc6 {[%clk 0:01:13]}  O-O {[%clk 0:02:16]} 22. Qxd5 {[%clk 0:01:11]}  Bxb4 {[%clk 0:02:15]} 23. Nf3 {[%clk 0:01:06]}  h3+ {[%clk 0:02:10]} 24. Kxh3 {[%clk 0:00:58]}  Bc3 {[%clk 0:02:11]} 25. Rab1 {[%clk 0:00:49]}  b4 {[%clk 0:02:11]} 26. Kg2 {[%clk 0:00:48]}  Rc8 {[%clk 0:02:05]} 27. Bd2 {[%clk 0:00:44]}  Re8 {[%clk 0:02:00]} 28. Rfc1 {[%clk 0:00:34]}  Rc7 {[%clk 0:01:48]} 29. Bxc3 {[%clk 0:00:32]}  bxc3 {[%clk 0:01:45]} 30. Rb7 {[%clk 0:00:28]}  Re2 {[%clk 0:01:34]} 31. Qb3 {[%clk 0:00:17]}  Rb2 {[%clk 0:01:27]} 32. Qd5 {[%clk 0:00:12]}  Rbxb7 {[%clk 0:01:26]} 33. axb7 {[%clk 0:00:11]}  Qb8 {[%clk 0:01:27]} 34. Qb3 {[%clk 0:00:07]}  Nf6 {[%clk 0:01:21]} 35. Rxc3 {[%clk 0:00:06]}  Rxc3 {[%clk 0:01:22]} 36. Qxc3 {[%clk 0:00:06]}  Qxb7 {[%clk 0:01:23]} 37. Qc5 {[%clk 0:00:05]}  Qa8 {[%clk 0:01:21]} 38. h3 {[%clk 0:00:04]}  a5 {[%clk 0:01:22]} 39. g4 {[%clk 0:00:04]}  a4 {[%clk 0:01:23]} 40. Qa3 {[%clk 0:00:04]}  Ne4 {[%clk 0:01:23]} 41. d5 {[%clk 0:00:02]}  f6 {[%clk 0:01:19]} 42. d6 {[%clk 0:00:00]}  Qc6 {[%clk 0:01:20]} 0-1


[Site "https://www.chess.com"]